bitfinex/quotes_BTCUSD_20250525
["timestamp","ask_amount","ask_price","bid_price","bid_amount"]
[1748179804947,0.012,107330.0,107310.0,0.39770556]
[1748179805146,0.0526,107330.0,107320.0,0.799953]
[1748179805352,0.0516,107330.0,107320.0,0.799953]
[1748179805982,0.0516,107330.0,107320.0,1.139953]
[1748179806503,0.0506,107330.0,107320.0,1.139953]
[1748179807303,0.0516,107330.0,107320.0,1.139953]
[1748179807605,0.0526,107330.0,107320.0,1.139953]
[1748179809045,0.0526,107330.0,107320.0,0.929703]
[1748179809250,0.0526,107330.0,107320.0,0.891452]
[1748179809451,0.0526,107330.0,107320.0,0.877132]
[1748179809568,0.0526,107330.0,107320.0,1.188012]
[1748179809771,0.0526,107330.0,107320.0,0.877132]
[1748179810034,0.0526,107330.0,107320.0,1.188012]
[1748179812042,0.0526,107330.0,107320.0,0.877132]
[1748179812357,0.0526,107330.0,107320.0,1.129162]
[1748179816754,0.0526,107330.0,107320.0,0.818282]
[1748179816955,0.0526,107330.0,107320.0,1.129122]
[1748179820050,0.0526,107330.0,107320.0,0.818282]
[1748179820251,0.0526,107330.0,107320.0,1.129122]
[1748179822310,0.0526,107330.0,107320.0,0.818282]
[1748179822461,0.0526,107330.0,107320.0,1.129122]
[1748179823958,0.0526,107330.0,107320.0,1.097635]
[1748179824842,0.0526,107330.0,107320.0,0.999891]
[1748179824990,0.0526,107330.0,107320.0,0.97698]
[1748179825183,0.0526,107330.0,107320.0,0.96467]
[1748179827057,0.0526,107330.0,107320.0,1.29931]
[1748179828210,0.0426,107330.0,107320.0,0.98847]
[1748179828416,0.0426,107330.0,107320.0,1.29931]
[1748179830709,0.0426,107330.0,107320.0,0.83676]
[1748179830827,0.0426,107330.0,107320.0,0.98548]
[1748179831306,0.0426,107330.0,107320.0,0.67464]
[1748179831427,0.0426,107330.0,107320.0,0.98548]
[1748179831634,0.13214556,107330.0,107320.0,0.33464]
[1748179831860,0.13214556,107330.0,107320.0,0.49676]
[1748179832065,0.13214556,107330.0,107320.0,0.33464]
[1748179832290,0.13214556,107330.0,107320.0,0.64548]
[1748179832980,0.13214556,107330.0,107320.0,0.64552]
[1748179833155,0.13214556,107330.0,107320.0,0.33464]
[1748179833337,0.1408462,107330.0,107320.0,0.64552]
[1748179833743,0.15567541,107330.0,107320.0,0.64552]
[1748179834371,0.14697477,107330.0,107320.0,0.64552]
[1748179834776,0.14697477,107330.0,107320.0,0.49676]
[1748179834955,0.13214556,107330.0,107320.0,0.64552]
[1748179835152,0.01,107300.0,107290.0,0.33468]
[1748179835381,0.0413,107300.0,107290.0,0.64556]
[1748179835556,0.0413,107300.0,107290.0,0.441715]
[1748179835744,0.0413,107300.0,107290.0,0.752595]
[1748179836558,0.0413,107300.0,107290.0,0.755595]
[1748179836765,0.0413,107300.0,107290.0,0.758595]
[1748179837511,0.05190052,107330.0,107290.0,0.758595]
[1748179837712,0.05190052,107330.0,107290.0,0.65156]
[1748179837912,0.05190052,107330.0,107300.0,0.34]
[1748179839467,0.05190052,107330.0,107300.0,0.342]
[1748179840332,0.0413,107320.0,107300.0,0.344]
[1748179840539,0.0413,107310.0,107300.0,0.344]
[1748179840718,0.0413,107310.0,107300.0,0.34331539]
[1748179841127,0.0413,107310.0,107300.0,0.34131539]
[1748179841523,0.0413,107310.0,107300.0,0.34331539]
[1748179841937,0.0413,107310.0,107300.0,0.34131539]
[1748179842696,0.0413,107310.0,107300.0,0.34331539]
[1748179852033,0.01,107310.0,107300.0,1.06987039]
[1748179860295,0.01,107310.0,107300.0,0.85918386]
[1748179860512,0.01,107310.0,107300.0,0.730555]
[1748179861061,0.01,107320.0,107310.0,0.0406]
[1748179861288,0.01,107330.0,107310.0,3.14154573]
[1748179861499,0.01,107320.0,107310.0,0.29190556]
[1748179861717,0.01,107320.0,107310.0,2.28167356]
[1748179863130,0.01,107330.0,107310.0,2.28167356]
[1748179863353,0.01,107330.0,107320.0,0.900776]
[1748179863576,0.01,107330.0,107320.0,0.898447]
[1748179863990,0.01,107330.0,107320.0,1.238447]
[1748179864400,0.01,107330.0,107320.0,1.259347]
[1748179864609,0.01,107330.0,107320.0,1.279047]
[1748179864813,0.011,107330.0,107320.0,1.279047]
[1748179865444,0.011,107330.0,107320.0,1.613727]
[1748179865954,0.012,107330.0,107320.0,1.613727]
[1748179866893,0.012,107330.0,107320.0,1.70327256]
[1748179867773,0.011,107330.0,107320.0,1.70327256]
[1748179868133,0.01,107330.0,107320.0,1.70327256]
[1748179868559,0.01015074,107340.0,107320.0,1.70327256]
[1748179868768,0.01015074,107340.0,107330.0,0.0215287]
[1748179869222,0.01015074,107340.0,107330.0,0.0023287]
[1748179870618,0.01115074,107340.0,107330.0,0.0023287]
[1748179871007,0.01215074,107340.0,107330.0,0.0023287]
[1748179871713,0.01215074,107340.0,107330.0,1.7039397]
[1748179871962,0.01215074,107340.0,107330.0,1.701611]
[1748179872168,0.01215074,107340.0,107330.0,1.79115656]
[1748179872376,0.00215074,107340.0,107330.0,2.21001329]
[1748179872764,0.00215074,107340.0,107330.0,2.18454176]
[1748179873121,0.0555234,107360.0,107350.0,0.0391]
[1748179873122,0.0262234,107360.0,107350.0,0.0391]
[1748179873341,0.0262234,107360.0,107350.0,1.88426581]
[1748179873559,0.0262234,107360.0,107350.0,1.88193756]
[1748179874232,0.0172234,107360.0,107350.0,1.88193756]
[1748179874446,0.0272234,107360.0,107350.0,1.78199256]
[1748179874912,0.0172234,107360.0,107350.0,1.78199256]
[1748179875322,0.0182234,107360.0,107350.0,1.78199256]
[1748179875742,0.0182234,107360.0,107350.0,1.80061139]
[1748179876968,0.0172234,107360.0,107350.0,1.80061139]
[1748179877175,0.0172234,107360.0,107350.0,1.80161139]
[1748179877924,0.0162234,107360.0,107350.0,2.14161139]
[1748179878354,0.0162234,107360.0,107350.0,2.15715224]
[1748179882395,0.01167262,107360.0,107350.0,2.15715224]
[1748179882816,0.07936,107380.0,107360.0,0.03789356]
[1748179882963,0.07986238,107380.0,107370.0,0.00232791]
[1748179884272,0.07986238,107380.0,107370.0,1.11346791]
[1748179884502,0.08086238,107380.0,107370.0,1.11114]
[1748179885112,0.08186238,107380.0,107370.0,1.45114]
[1748179885960,0.08186238,107380.0,107370.0,1.7857]
[1748179886174,0.04256238,107380.0,107370.0,1.87524556]
[1748179886530,0.04456238,107380.0,107370.0,1.87524556]
[1748179887186,0.04056238,107380.0,107370.0,1.87524556]
[1748179887528,0.04256238,107380.0,107370.0,1.87524556]
[1748179888095,0.06166238,107380.0,107370.0,1.87524556]
[1748179888447,0.06166238,107380.0,107370.0,1.57309556]
[1748179888831,0.08146238,107380.0,107370.0,1.57309556]
[1748179889517,0.08146238,107380.0,107370.0,1.88189556]
[1748179890041,0.08146238,107380.0,107370.0,1.32639356]
[1748179892910,0.07146238,107380.0,107370.0,0.928048]
[1748179893113,0.07146238,107380.0,107370.0,1.236848]
[1748179893385,0.07146238,107380.0,107370.0,0.98336]
[1748179893608,0.0429,107360.0,107350.0,0.01861883]
[1748179893832,0.0429,107360.0,107350.0,0.17873883]
[1748179894040,0.0429,107360.0,107350.0,0.16012]
[1748179894248,0.0429,107360.0,107350.0,0.16244866]
[1748179894943,0.0429,107360.0,107350.0,0.17909826]
[1748179895169,0.0429,107360.0,107350.0,0.18009826]
[1748179895933,0.0429,107360.0,107350.0,0.18109826]
[1748179896764,0.0429,107360.0,107350.0,0.32977826]
[1748179896978,0.0429,107360.0,107350.0,0.3274496]
[1748179899116,0.0429,107360.0,107350.0,0.3272496]
[1748179900194,0.0429,107360.0,107350.0,0.3106]
[1748179911349,0.0429,107360.0,107350.0,1.657014]
[1748179911563,0.0429,107360.0,107350.0,1.719266]
[1748179911772,0.0429,107360.0,107350.0,1.488246]
[1748179911988,0.0429,107360.0,107350.0,1.37578]
[1748179912179,0.0429,107360.0,107350.0,1.103243]
[1748179912790,0.0429,107360.0,107350.0,0.6506]
[1748179913155,0.0429,107360.0,107350.0,0.776107]
[1748179913355,0.0429,107360.0,107350.0,0.6506]
[1748179913617,0.0429,107360.0,107350.0,0.50188]
[1748179913826,0.0429,107360.0,107350.0,0.6506]
[1748179916802,0.0429,107360.0,107350.0,0.50188]
[1748179916978,0.0429,107360.0,107350.0,0.002]
[1748179917181,0.0429,107360.0,107350.0,0.3106]
[1748179917405,0.13244556,107360.0,107350.0,0.3106]
[1748179918174,0.13244556,107360.0,107350.0,0.002]
[1748179918395,0.13244556,107360.0,107300.0,0.03202034]
[1748179918606,0.01,107310.0,107300.0,0.42414556]
[1748179918820,0.01,107310.0,107300.0,2.45146156]
[1748179919305,0.01,107310.0,107300.0,2.79146156]
[1748179919517,0.01,107310.0,107300.0,2.45146156]
[1748179919724,0.01,107310.0,107300.0,2.79346156]
[1748179919932,0.01,107310.0,107300.0,2.7936123]
[1748179920138,0.01,107310.0,107300.0,2.7916123]
[1748179920364,0.0315,107320.0,107310.0,0.34]
[1748179920591,0.0412,107310.0,107300.0,0.33675074]
[1748179921009,0.0412,107310.0,107300.0,0.64535074]
[1748179921149,0.0412,107310.0,107300.0,0.98535074]
[1748179921352,0.0412,107310.0,107300.0,0.64535074]
[1748179921585,0.0412,107310.0,107300.0,0.64335074]
[1748179921758,0.01,107290.0,107280.0,0.0215]
[1748179921932,0.007,107290.0,107280.0,3.35622279]
[1748179922369,0.007,107290.0,107280.0,2.85805779]
[1748179922791,0.007,107290.0,107280.0,2.71393179]
[1748179922995,0.007,107290.0,107280.0,2.86265179]
[1748179923192,0.007,107290.0,107280.0,2.11394679]
[1748179923397,0.007,107290.0,107280.0,1.83738679]
[1748179923600,0.007,107290.0,107280.0,1.68866679]
[1748179923813,0.007,107290.0,107280.0,2.17738679]
[1748179924694,0.007,107290.0,107280.0,2.18038679]
[1748179927580,0.007,107290.0,107280.0,2.67498679]
[1748179928086,0.007,107300.0,107290.0,0.0208]
[1748179928300,0.007,107300.0,107290.0,4.97702795]
[1748179928524,0.007,107300.0,107290.0,4.55109209]
[1748179928771,0.007,107300.0,107290.0,2.89242509]
[1748179928967,0.007,107310.0,107290.0,2.90696594]
[1748179929148,0.007,107310.0,107300.0,3.17247256]
[1748179929350,0.007,107310.0,107300.0,2.73058956]
[1748179929555,0.007,107310.0,107300.0,2.70928756]
[1748179930638,0.007,107310.0,107300.0,2.56591256]
[1748179930845,0.007,107310.0,107300.0,2.78591256]
[1748179931080,0.007,107310.0,107300.0,2.80821256]
[1748179931739,0.007,107330.0,107310.0,0.3837]
[1748179931950,0.0208,107340.0,107320.0,2.77833892]
[1748179932167,0.0208,107340.0,107320.0,0.33058]
[1748179932389,0.0208,107340.0,107320.0,0.42012556]
[1748179932605,0.007,107340.0,107330.0,0.191665]
[1748179933243,0.00705022,107340.0,107330.0,0.191665]
[1748179933454,0.00705022,107340.0,107330.0,0.20586858]
[1748179933683,0.00805022,107340.0,107330.0,0.20586858]
[1748179934354,0.00905022,107340.0,107330.0,0.20586858]
[1748179934972,0.01105022,107340.0,107330.0,0.20586858]
[1748179935676,0.00405022,107340.0,107330.0,0.70388567]
[1748179936082,0.00405022,107340.0,107330.0,0.67841414]
[1748179936511,0.00205022,107340.0,107330.0,0.67841414]
[1748179936904,5.022e-05,107340.0,107330.0,0.68041414]
[1748179937309,5.022e-05,107340.0,107330.0,0.68141414]
[1748179938004,5.022e-05,107340.0,107330.0,0.66071414]
[1748179939776,0.0419,107370.0,107330.0,0.31295499]
[1748179939986,0.007,107350.0,107340.0,3.75253191]
[1748179940230,0.007,107360.0,107340.0,3.90968356]
[1748179940430,0.007,107360.0,107350.0,3.290747]
[1748179940614,0.007,107360.0,107350.0,3.09446856]
[1748179941978,0.009,107360.0,107350.0,3.09446856]
[1748179942598,0.009,107360.0,107350.0,3.43446856]
[1748179943155,0.01,107360.0,107350.0,3.43446856]
[1748179943358,0.003,107360.0,107350.0,3.47746856]
[1748179943581,5.024e-05,107370.0,107360.0,0.34]
[1748179943760,0.03006,107380.0,107360.0,4.86912456]
[1748179943965,0.03056241,107380.0,107370.0,3.24250497]
[1748179944187,0.03056241,107380.0,107370.0,3.215883]
[1748179944402,0.03056241,107380.0,107370.0,3.029871]
[1748179944610,0.03056241,107380.0,107370.0,2.081829]
[1748179945064,0.03056241,107380.0,107370.0,1.730169]
[1748179945259,0.05006241,107380.0,107370.0,0.260802]
[1748179945465,0.05006241,107380.0,107370.0,0.17436269]
[1748179945466,0.07216241,107380.0,107370.0,0.17436269]
[1748179945683,0.07216241,107380.0,107370.0,0.66308269]
[1748179946102,0.07316241,107380.0,107370.0,0.66308269]
[1748179946538,0.07316241,107380.0,107370.0,0.35488269]
[1748179946744,0.07316241,107380.0,107370.0,0.66308269]
[1748179947796,0.05106241,107380.0,107370.0,0.66308269]
[1748179949193,0.05106241,107380.0,107370.0,1.19493569]
[1748179949405,0.05106241,107380.0,107370.0,1.15726869]
[1748179949615,0.05106241,107380.0,107370.0,1.01282869]
[1748179950846,0.03156241,107380.0,107370.0,1.01282869]
[1748179958292,0.05296241,107380.0,107370.0,1.01282869]
[1748179958868,0.03156241,107380.0,107370.0,1.01282869]
[1748179961195,0.05186241,107380.0,107370.0,1.01282869]
[1748179962794,0.03156241,107380.0,107370.0,1.14227425]
[1748179963041,0.03156241,107380.0,107370.0,1.16774578]
[1748179963271,0.03156241,107380.0,107370.0,1.14227425]
[1748179963490,0.03156241,107380.0,107370.0,1.10237425]
[1748179963700,0.03156241,107380.0,107370.0,1.10541425]
[1748179965755,0.02978931,107380.0,107370.0,1.10541425]
[1748179967538,0.02972931,107380.0,107370.0,0.80348723]
[1748179967758,0.05002931,107380.0,107370.0,0.82211397]
[1748179968213,0.05002931,107380.0,107370.0,1.13331397]
[1748179969007,0.05002931,107380.0,107370.0,0.82211397]
[1748179969222,0.05002931,107380.0,107370.0,1.13331397]
[1748179969820,0.05002931,107380.0,107370.0,0.82211397]
[1748179970026,0.05002931,107380.0,107370.0,0.73256841]
[1748179970253,0.02972931,107380.0,107370.0,1.04376841]
[1748179970626,0.05002931,107380.0,107370.0,1.04376841]
[1748179971391,0.05002931,107380.0,107370.0,0.73256841]
[1748179971609,0.05002931,107380.0,107370.0,1.04376841]
[1748179971844,0.05002931,107380.0,107370.0,0.73256841]
[1748179972059,0.05002931,107380.0,107370.0,1.04376841]
[1748179972290,0.07032931,107380.0,107370.0,0.04282241]
[1748179972511,0.07032931,107380.0,107370.0,0.20534241]
[1748179972723,0.07032931,107380.0,107370.0,0.35402241]
[1748179973596,0.15987487,107380.0,107370.0,0.19045972]
[1748179973798,0.168569,107380.0,107370.0,0.02793972]
[1748179974008,0.168569,107380.0,107370.0,0.19045972]
[1748179974248,0.168569,107380.0,107370.0,0.02793972]
[1748179974450,0.168569,107380.0,107370.0,0.19045972]
[1748179974923,0.167569,107380.0,107370.0,0.19045972]
[1748179975339,0.18439821,107380.0,107370.0,0.19045972]
[1748179975553,0.18739821,107380.0,107370.0,0.19045972]
[1748179977183,0.18739821,107380.0,107370.0,0.16867247]
[1748179977388,0.18739821,107380.0,107370.0,0.18729869]
[1748179978223,0.172569,107380.0,107370.0,0.18729869]
[1748179984540,0.16387487,107380.0,107370.0,0.18729869]
[1748179985362,0.16387487,107380.0,107370.0,0.18733869]
[1748179986972,0.17870408,107380.0,107370.0,0.18733869]
[1748179988640,0.18870408,107380.0,107370.0,0.02477869]
[1748179989691,0.18370408,107380.0,107370.0,0.02477869]
[1748179990039,0.18970408,107380.0,107370.0,0.02477869]
[1748179990634,0.19570408,107380.0,107370.0,0.02477869]
[1748179992086,0.25992931,107380.0,107370.0,0.02477869]
[1748179996550,0.35776931,107380.0,107370.0,0.02477869]
[1748179996748,0.25992931,107380.0,107370.0,0.02477869]
[1748179998123,0.19570408,107380.0,107370.0,0.02477869]
[1748179998608,0.18087487,107380.0,107370.0,0.02477869]
[1748179999018,0.0409,107370.0,107360.0,0.0186276]
[1748179999189,0.13044556,107370.0,107360.0,0.0186276]
[1748180000153,0.13544556,107370.0,107360.0,0.0186276]
[1748180000985,0.15027012,107370.0,107360.0,0.0186276]
[1748180001660,0.15491788,107370.0,107360.0,0.0186276]
[1748180007095,0.0203,107360.0,107350.0,0.1616]
[1748180007299,0.10984556,107360.0,107350.0,0.17091471]
[1748180007505,0.10984556,107360.0,107350.0,0.18022968]
[1748180008353,0.11284556,107360.0,107350.0,0.18022968]
[1748180008971,0.11584556,107360.0,107350.0,0.18022968]
[1748180010499,0.13594556,107360.0,107350.0,0.18022968]
[1748180015666,0.15077012,107360.0,107350.0,0.18022968]
[1748180017589,0.13594556,107360.0,107350.0,0.18022968]
[1748180021418,0.20024878,107360.0,107350.0,0.18022968]
[1748180024760,0.26310721,107380.0,107350.0,0.18022968]
[1748180024970,0.44852306,107380.0,107370.0,0.00931298]
[1748180025176,0.58456862,107380.0,107370.0,0.02793972]
[1748180026888,0.68240862,107380.0,107370.0,0.02793972]
[1748180027475,0.74319862,107380.0,107370.0,0.02793972]
[1748180027967,0.78559862,107380.0,107370.0,0.02793972]
[1748180028167,0.78759862,107380.0,107370.0,0.02793972]
[1748180028748,0.78559862,107380.0,107370.0,0.02793972]
[1748180029523,0.78759862,107380.0,107370.0,0.02793972]
[1748180029934,0.67907556,107380.0,107370.0,0.02793972]
[1748180030135,0.82783556,107380.0,107370.0,0.02793972]
[1748180034745,0.85393596,107380.0,107370.0,0.02793972]
[1748180035545,0.88363762,107380.0,107370.0,0.02793972]
[1748180037079,0.88363762,107380.0,107360.0,0.01862794]
[1748180037080,0.01862622,107370.0,107360.0,0.01862794]
[1748180037299,0.49363,107360.0,107350.0,0.0186295]
[1748180037543,0.60927596,107360.0,107350.0,0.0186295]
[1748180037742,0.80043596,107360.0,107350.0,0.0186295]
[1748180037887,0.82835196,107360.0,107350.0,0.0186295]
[1748180038755,0.85805362,107360.0,107350.0,0.0186295]
[1748180038964,0.86305362,107360.0,107350.0,0.0186295]
[1748180039167,0.86805362,107360.0,107350.0,0.0186295]
[1748180039818,0.55347917,107360.0,107350.0,0.0186295]
[1748180040002,0.52556317,107360.0,107350.0,0.0186295]
[1748180040661,0.56751702,107360.0,107350.0,0.0186295]
[1748180041550,0.56751702,107360.0,107350.0,0.00931462]
[1748180042162,0.53781536,107360.0,107350.0,0.00931462]
[1748180043068,0.52730891,107360.0,107350.0,0.00931462]
[1748180048014,0.18730891,107360.0,107350.0,0.00931462]
[1748180048229,0.52730891,107360.0,107350.0,0.00931462]
[1748180051543,0.18730891,107360.0,107350.0,0.00931462]
[1748180051964,0.52730891,107360.0,107350.0,0.00931462]
[1748180052472,0.55701057,107360.0,107350.0,0.00931462]
[1748180052948,0.58492357,107360.0,107350.0,0.00931462]
[1748180058277,0.58492357,107360.0,107340.0,0.0206]
[1748180058481,0.13604556,107350.0,107340.0,0.0206]
[1748180061097,0.13804556,107350.0,107340.0,0.0206]
[1748180062097,0.14004556,107350.0,107340.0,0.0206]
[1748180062302,0.14004556,107350.0,107340.0,0.0412]
[1748180062507,0.14004556,107350.0,107340.0,0.0206]
[1748180063208,0.16124556,107350.0,107320.0,0.15868]
[1748180063786,0.0148492,107340.0,107320.0,0.15868]
[1748180064005,0.10439476,107340.0,107320.0,0.15868]
[1748180064433,0.10439476,107340.0,107320.0,0.30744]
[1748180064646,0.10439476,107340.0,107320.0,0.30844]
[1748180065003,0.10439476,107340.0,107320.0,0.30794241]
[1748180065207,0.10439476,107340.0,107320.0,0.30894241]
[1748180066220,0.10439476,107340.0,107330.0,0.0426]
[1748180066963,0.10439476,107340.0,107330.0,0.022]
[1748180067398,0.10539476,107340.0,107330.0,0.022]
[1748180071426,0.10539476,107340.0,107320.0,0.34974241]
[1748180072807,0.10439476,107340.0,107320.0,0.34974241]
[1748180074190,0.10439476,107340.0,107320.0,0.35074241]
[1748180074396,0.0148492,107330.0,107320.0,0.35074241]
[1748180075335,0.0148492,107330.0,107320.0,0.34974241]
[1748180075872,0.0148492,107330.0,107320.0,0.35074241]
[1748180076235,0.10439476,107330.0,107320.0,0.33014241]
[1748180076467,0.10439476,107330.0,107320.0,0.35064241]
[1748180078947,0.0148492,107330.0,107320.0,0.35064241]
[1748180081919,0.04633586,107330.0,107320.0,0.35064241]
[1748180082450,0.03148666,107330.0,107320.0,0.35064241]
[1748180083575,0.03148666,107330.0,107320.0,0.15864]
[1748180084509,0.03148666,107330.0,107320.0,0.3074]
[1748180086006,0.12420305,107350.0,107320.0,0.3074]
[1748180086171,0.08954556,107340.0,107320.0,0.3074]
[1748180086387,0.08954556,107340.0,107330.0,0.0228]
[1748180086938,0.12420305,107350.0,107330.0,0.0228]
[1748180087097,0.21374861,107350.0,107340.0,0.14876]
[1748180088113,0.23624861,107350.0,107340.0,0.14876]
[1748180088604,0.21574861,107350.0,107340.0,0.14876]
[1748180089098,0.20529455,107350.0,107340.0,0.14876]
[1748180089725,0.19044535,107350.0,107340.0,0.14876]
[1748180089928,0.19244535,107350.0,107340.0,0.14876]
[1748180090579,0.10289979,107350.0,107340.0,0.14876]
[1748180090769,0.08199979,107350.0,107340.0,0.17156]
[1748180091320,0.08199979,107350.0,107340.0,0.14876]
[1748180091573,0.10289979,107350.0,107340.0,0.14876]
[1748180093224,0.0714,107350.0,107340.0,0.14876]
[1748180094237,0.004,107350.0,107340.0,0.17156]
[1748180095129,0.004,107350.0,107340.0,0.14876]
[1748180095350,0.0259,107350.0,107340.0,0.14876]
[1748180095895,0.004,107350.0,107340.0,0.14876]
[1748180096231,0.004,107350.0,107340.0,0.17126]
[1748180097304,0.002,107350.0,107340.0,0.17126]
[1748180097491,0.0367492,107360.0,107340.0,0.17126]
[1748180097751,0.12629476,107360.0,107350.0,0.1586]
[1748180098433,0.0148492,107360.0,107350.0,0.1811]
[1748180098663,0.0148492,107360.0,107350.0,0.1966]
[1748180098880,0.7320492,107370.0,107350.0,0.1966]
[1748180099163,0.82159476,107370.0,107350.0,0.1811]
[1748180099382,0.002,107360.0,107350.0,0.1811]
[1748180099599,0.002,107360.0,107350.0,0.721033]
[1748180099864,0.002,107360.0,107350.0,1.061033]
[1748180100062,0.002,107360.0,107350.0,1.076533]
[1748180100448,0.07870305,107380.0,107350.0,1.054033]
[1748180100579,0.16824861,107380.0,107360.0,0.450765]
[1748180100783,0.12629476,107380.0,107360.0,0.450765]
[1748180101008,0.0148492,107380.0,107370.0,0.0209]
[1748180101258,0.14600305,107390.0,107370.0,0.0209]
[1748180101504,0.11198892,107390.0,107380.0,1.663746]
[1748180101762,0.11249133,107390.0,107380.0,1.675799]
[1748180101976,0.06599133,107390.0,107380.0,1.675799]
[1748180102195,0.05114213,107390.0,107380.0,1.675799]
[1748180102621,0.04245626,107390.0,107380.0,1.76534456]
[1748180103661,0.04245626,107390.0,107380.0,2.10634456]
[1748180104040,0.04345626,107390.0,107380.0,2.10534456]
[1748180104430,0.04245626,107390.0,107380.0,1.79798456]
[1748180104636,0.04245626,107390.0,107380.0,2.10530456]
[1748180104798,0.04245626,107390.0,107380.0,2.10730456]
[1748180105007,0.00050241,107390.0,107380.0,2.10930456]
[1748180113122,0.00050241,107390.0,107380.0,2.14931694]
[1748180113759,0.00050241,107390.0,107380.0,2.14531694]
[1748180113965,0.00050241,107390.0,107380.0,2.14831694]
[1748180114167,0.00050241,107390.0,107380.0,2.15131694]
[1748180114385,0.00050241,107390.0,107380.0,2.17620194]
[1748180114591,0.00050241,107390.0,107380.0,2.17320194]
[1748180114800,0.00050241,107390.0,107380.0,2.18520194]
[1748180115822,0.00050241,107390.0,107380.0,1.87788194]
[1748180116022,0.00050241,107390.0,107380.0,2.18516194]
[1748180117177,0.00050241,107390.0,107380.0,2.60106194]
[1748180117800,0.00050241,107390.0,107380.0,2.54762541]
[1748180118039,0.00050241,107390.0,107380.0,1.74078456]
[1748180118484,0.00050241,107390.0,107380.0,2.08078456]
[1748180118781,0.00050241,107390.0,107380.0,1.77358456]
[1748180118982,0.00050241,107390.0,107380.0,2.08078456]
[1748180121531,0.00050241,107390.0,107380.0,2.07478456]
[1748180121733,0.00050241,107390.0,107380.0,2.06878456]
[1748180121912,0.00050241,107390.0,107380.0,2.07078456]
[1748180122454,0.00050241,107390.0,107380.0,1.76358456]
[1748180122667,0.00050241,107390.0,107380.0,2.07078456]
[1748180122869,0.00050241,107390.0,107380.0,1.76358456]
[1748180123007,0.00050241,107390.0,107380.0,1.76658456]
[1748180123207,0.00050241,107390.0,107380.0,2.09708456]
[1748180123412,0.00050241,107390.0,107380.0,2.11258456]
[1748180123820,0.00050241,107390.0,107380.0,2.13805609]
[1748180124022,0.02,107400.0,107390.0,0.3788]
[1748180124223,0.02,107400.0,107390.0,5.51834556]
[1748180125752,0.01416347,107400.0,107390.0,5.51834556]
[1748180126613,0.01430374,107400.0,107390.0,5.52034556]
[1748180126848,0.01430374,107400.0,107390.0,5.55083927]
[1748180127814,0.01430374,107400.0,107390.0,5.5763108]
[1748180129662,0.01430374,107400.0,107390.0,5.55083927]
[1748180130084,0.01430374,107400.0,107390.0,5.57462419]
[1748180130443,0.01430374,107400.0,107390.0,5.58347053]
[1748180134057,0.01430374,107400.0,107390.0,5.73211053]
[1748180134470,0.01430374,107400.0,107390.0,5.85187053]
[1748180134977,0.01430374,107400.0,107390.0,5.87437053]
[1748180135384,0.06508343,107420.0,107400.0,0.0215]
[1748180135593,0.01888343,107420.0,107410.0,5.51774556]
[1748180135830,0.01888343,107420.0,107410.0,5.54395289]
[1748180136235,0.01888343,107420.0,107410.0,5.56562466]
[1748180136642,0.0233,107440.0,107420.0,0.34]
[1748180136974,0.02344027,107440.0,107430.0,5.46603226]
[1748180137175,0.00014027,107440.0,107430.0,5.46370556]
[1748180137548,0.00014027,107440.0,107430.0,6.13810556]
[1748180137781,0.00014027,107440.0,107430.0,6.16431289]
[1748180138153,0.1395234,107470.0,107430.0,6.20251289]
[1748180138386,0.0233,107460.0,107440.0,5.39232616]
[1748180138578,0.0233,107460.0,107450.0,4.78638156]
[1748180139062,0.1625234,107470.0,107460.0,0.34]
[1748180139276,0.1625234,107470.0,107460.0,1.401394]
[1748180139776,0.1625234,107470.0,107460.0,1.49093956]
[1748180139977,0.1625234,107470.0,107460.0,1.51430804]
[1748180140311,0.1625234,107470.0,107460.0,1.66294804]
[1748180140515,0.1395234,107470.0,107460.0,1.66294804]
[1748180140740,0.1405234,107470.0,107460.0,1.66294804]
[1748180140945,0.1623234,107470.0,107460.0,1.66294804]
[1748180142402,0.1405234,107470.0,107460.0,1.66294804]
[1748180142988,0.1405234,107470.0,107460.0,1.51430804]
[1748180143189,0.1623234,107470.0,107460.0,1.83838804]
[1748180143413,0.1623234,107470.0,107460.0,1.51430804]
[1748180143608,0.1623234,107470.0,107460.0,1.85217953]
[1748180143837,0.1623234,107470.0,107460.0,1.52809953]
[1748180144059,0.1623234,107470.0,107460.0,1.85217953]
[1748180144298,0.1623234,107470.0,107460.0,1.85213953]
[1748180144769,0.1563234,107470.0,107460.0,1.51213953]
[1748180145311,0.1563234,107470.0,107460.0,1.18809953]
[1748180145521,0.1563234,107470.0,107460.0,1.51213953]
[1748180146525,0.1345234,107470.0,107460.0,1.51213953]
[1748180148113,0.1345234,107470.0,107460.0,1.85213953]
[1748180148354,0.1112234,107470.0,107460.0,1.85213953]
[1748180148988,0.1112234,107470.0,107460.0,1.87433953]
[1748180149351,0.1112234,107470.0,107460.0,1.90054686]
[1748180149956,0.1102234,107470.0,107460.0,1.87834686]
[1748180150864,0.1102234,107470.0,107460.0,1.90001863]
[1748180151062,0.1102234,107470.0,107460.0,1.87830686]
[1748180151679,0.0731234,107470.0,107460.0,1.89940686]
[1748180151810,0.0731234,107470.0,107460.0,1.93777863]
[1748180152568,0.0731234,107470.0,107460.0,1.92107863]
[1748180152883,0.0731234,107470.0,107460.0,1.93561948]
[1748180153092,0.02670611,107470.0,107460.0,1.95231948]
[1748180153293,0.01395138,107480.0,107470.0,0.38277177]
[1748180153509,0.01395138,107480.0,107470.0,5.57976551]
[1748180153510,0.0066752,107480.0,107470.0,5.57976551]
[1748180153721,0.0066752,107480.0,107470.0,5.80350556]
[1748180153883,0.0066752,107480.0,107470.0,5.47954556]
[1748180154084,0.0289752,107480.0,107470.0,5.65494556]
[1748180154473,0.0515752,107480.0,107470.0,3.546222]
[1748180155066,0.0515752,107480.0,107470.0,2.896244]
[1748180155270,0.0515752,107480.0,107470.0,2.46277]
[1748180155481,0.0515752,107480.0,107470.0,1.932203]
[1748180155682,0.0515752,107480.0,107470.0,0.965627]
[1748180156105,0.0515752,107480.0,107470.0,0.951222]
[1748180156310,0.0515752,107480.0,107470.0,0.627262]
[1748180156510,0.0515752,107480.0,107470.0,0.951222]
[1748180156712,0.0515752,107480.0,107470.0,0.001]
[1748180156918,0.0515752,107480.0,107470.0,0.32496]
[1748180157132,0.0515752,107480.0,107470.0,0.618962]
[1748180157554,0.0515752,107480.0,107470.0,0.617962]
[1748180159142,0.0515752,107480.0,107470.0,0.4289]
[1748180159326,0.0515752,107480.0,107470.0,0.32396]